bitfinex/quotes_ETHUSD_20220113
["timestamp","ask_amount","ask_price","bid_price","bid_amount"]
[1642077623568,1.9066971,3358.7,3358.4,2.55995205]
[1642077623756,1.90936037,3358.7,3358.4,2.55995205]
[1642077623956,0.7445,3358.8,3358.5,0.00454739]
[1642077624960,2.00343698,3358.9,3358.5,0.00454739]
[1642077625164,1.17045,3359.0,3358.6,2.55995205]
[1642077625362,3.03181502,3359.0,3358.6,2.55995205]
[1642077625562,1.17045,3359.0,3358.7,0.00341054]
[1642077625762,3.03603481,3359.0,3358.7,0.00341054]
[1642077625963,1.17045,3359.0,3358.7,0.00341054]
[1642077626166,3.04626801,3359.0,3358.7,0.00341054]
[1642077626365,1.17045,3359.0,3358.7,0.00341054]
[1642077626864,1.17045,3359.0,3358.7,2.56336259]
[1642077627313,1.17045,3359.0,3358.8,0.00284211]
[1642077627713,1.17045,3359.0,3358.8,2.56279416]
[1642077627714,0.74445,3359.0,3358.8,2.56279416]
[1642077627913,1.27684183,3359.1,3358.8,2.56279416]
[1642077628115,1.27684183,3359.1,3358.9,0.00227369]
[1642077628917,4.27684183,3359.1,3358.9,0.00227369]
[1642077629119,3.0,3359.1,3358.9,0.00227369]
[1642077629520,3.0,3359.1,3358.9,2.56222574]
[1642077630018,3.0,3359.1,3359.0,0.00170527]
[1642077631465,3.0,3359.1,3359.0,2.56165732]
[1642077631666,3.0,3359.1,3359.0,2.86165732]
[1642077632970,3.0,3359.1,3359.0,2.56165732]
[1642077634171,3.0,3359.1,3359.0,0.00170527]
[1642077634573,3.0,3359.1,3358.8,0.00284211]
[1642077635627,3.0,3359.1,3359.0,8.01510706]
[1642077635828,3.0,3359.1,3359.0,8.31510706]
[1642077636030,3.0,3359.1,3359.0,9.31681233]
[1642077636435,3.0,3359.1,3359.0,10.50995568]
[1642077636635,3.0,3359.1,3359.0,5.17676438]
[1642077637038,1.2155161,3359.4,3359.2,1.0441847]
[1642077637433,1.2155161,3359.4,3359.2,1.04419]
[1642077638667,1.2155161,3359.4,3359.3,2.55995205]
[1642077638874,4.2155161,3359.4,3359.3,2.55995205]
[1642077639673,3.0,3359.4,3359.3,2.55995205]
[1642077639874,0.00113685,3359.5,3359.3,3.30416205]
[1642077640076,0.00113685,3359.5,3359.3,2.55995205]
[1642077641074,1.46918796,3359.4,3359.3,3.30413635]
[1642077641475,0.00113685,3359.5,3359.3,3.60413635]
[1642077642074,0.00113685,3359.5,3359.4,1.91710896]
[1642077643018,0.00113685,3359.5,3359.4,11.97706101]
[1642077643315,5.0,3360.8,3359.7,0.7439567]
[1642077643522,3.9764,3360.8,3360.7,6.36208821]
[1642077643722,2.7341649,3362.0,3360.9,6.7]
[1642077643924,18.2875,3363.2,3360.9,6.7]
[1642077643925,0.44090468,3363.3,3361.9,0.01258594]
[1642077644124,0.44090468,3363.3,3362.8,6.71274955]
[1642077644328,0.119253,3363.7,3362.9,6.7]
[1642077644329,0.45326692,3363.7,3362.9,6.7]
[1642077644524,0.45326692,3363.7,3363.6,4.91292707]
[1642077644722,0.45326692,3363.7,3363.6,4.76292707]
[1642077644923,0.4771407,3363.7,3363.6,6.21920114]
[1642077645124,0.4771407,3363.7,3363.6,8.62631082]
[1642077645323,1.118978,3365.0,3363.9,6.7]
[1642077645525,1.118978,3365.0,3364.1,1.485734]
[1642077645526,0.05189546,3365.0,3364.1,1.485734]
[1642077645728,0.05189546,3365.0,3364.0,5.3974579]
[1642077645729,0.05189546,3365.0,3364.2,0.45788625]
[1642077645923,0.05189546,3365.0,3364.0,1.3]
[1642077646172,1.51887021,3364.3,3364.2,1.13518127]
[1642077646372,1.51887021,3364.3,3364.0,3.3]
[1642077646373,1.51887021,3364.3,3364.0,0.3]
[1642077646575,1.52228076,3364.3,3363.7,1.3]
[1642077646978,1.52228076,3364.3,3363.7,0.3]
[1642077647176,1.52228076,3364.3,3363.5,1.78615]
[1642077647374,0.8978,3364.2,3363.7,3.83988607]
[1642077647574,2.09233302,3364.1,3364.0,2.85995205]
[1642077647777,2.04460672,3364.1,3364.0,2.85995205]
[1642077648077,2.04460672,3364.1,3364.0,2.55995205]
[1642077648078,1.99460672,3364.1,3364.0,2.55995205]
[1642077648875,1.99460672,3364.1,3363.7,3.83988607]
[1642077649075,1.99460672,3364.1,3363.3,0.01298569]
[1642077649276,1.99460672,3364.1,3363.1,1.0]
[1642077649277,0.8978,3363.9,3363.1,1.0]
[1642077649481,0.8978,3363.7,3363.4,0.00170527]
[1642077649676,0.8978,3363.6,3363.2,0.00284211]
[1642077649936,2.04680376,3363.6,3363.2,0.00284211]
[1642077650236,0.8978,3363.4,3363.3,0.00227369]
[1642077650635,0.8978,3363.4,3362.9,0.00454738]
[1642077651036,0.8978,3363.4,3363.0,0.74323]
[1642077651235,0.8978,3363.4,3362.9,0.00454738]
[1642077651442,0.8978,3363.4,3363.1,0.00341054]
[1642077651639,0.8978,3363.4,3363.0,2.86141708]
[1642077651838,0.8978,3363.4,3363.0,3.16539604]
[1642077652039,0.8978,3363.4,3363.1,0.00341054]
[1642077652437,0.8978,3363.4,3363.2,2.55654753]
[1642077652638,1.14831329,3363.8,3363.3,4.2]
[1642077652838,1.14831329,3363.8,3363.3,4.50227369]
[1642077653039,1.28463559,3363.5,3363.4,0.48030811]
[1642077654167,1.28067033,3363.5,3363.4,0.48030811]
[1642077655768,5.28067033,3363.5,3363.4,0.48030811]
[1642077655967,1.28067033,3363.5,3363.4,0.48030811]
[1642077656371,1.28067033,3363.5,3363.4,0.48110811]
[1642077660625,1.14831329,3363.8,3363.4,0.48110811]
[1642077660827,1.14831329,3363.8,3363.7,0.47860284]
[1642077661478,0.00113685,3363.9,3363.7,0.47860284]
[1642077663378,1.36363897,3363.8,3363.7,0.47860284]
[1642077663580,1.36022842,3363.8,3363.7,0.47860284]
[1642077663780,0.00113685,3363.9,3363.7,0.47860284]
[1642077663980,0.00113685,3363.9,3363.8,2.41738156]
[1642077664182,0.00113685,3363.9,3363.8,0.47860284]
[1642077664830,1.53568447,3363.9,3363.8,0.47860284]
[1642077665628,1.53568447,3363.9,3363.8,0.47940284]
[1642077666628,1.53568447,3363.9,3363.8,4.52940284]
[1642077666827,1.53568447,3363.9,3363.8,0.47940284]
[1642077668229,0.426,3364.9,3364.7,0.47860284]
[1642077668432,4.07358951,3364.8,3364.7,0.47860284]
[1642077668684,1.37358951,3364.8,3364.7,0.47860284]
[1642077669285,2.61400514,3364.8,3364.7,0.47860284]
[1642077670686,2.61400514,3364.8,3364.7,0.47940284]
[1642077670887,2.61400514,3364.8,3364.7,0.48020284]
[1642077671089,2.51400514,3364.8,3364.7,0.48020284]
[1642077672529,0.39614606,3365.0,3364.7,0.48020284]
[1642077672732,0.05189546,3365.0,3364.7,0.48020284]
[1642077672927,0.00568424,3364.9,3364.7,0.48020284]
[1642077673327,0.05189546,3365.0,3364.7,0.48020284]
[1642077673328,0.00511581,3364.8,3364.7,0.48020284]
[1642077673530,1.15012933,3364.8,3364.7,0.48020284]
[1642077674530,3.65012933,3364.8,3364.7,0.48020284]
[1642077675333,1.15012933,3364.8,3364.7,0.48020284]
[1642077675933,1.15012933,3364.8,3364.7,0.0016]
[1642077680931,1.15012933,3364.8,3364.7,0.48020284]
[1642077682135,1.15012933,3364.8,3364.7,3.0361235]
[1642077683336,1.23483829,3364.9,3364.8,0.47860284]
[1642077683582,1.20217083,3364.9,3364.8,0.47860284]
[1642077684180,0.7431202,3365.7,3365.3,2.16390182]
[1642077684379,0.426,3365.6,3365.4,0.47860284]
[1642077684579,6.21842248,3365.5,3365.4,0.47860284]
[1642077684779,6.93667718,3365.5,3365.4,0.47860284]
[1642077686586,24.76667718,3365.5,3364.8,0.0016]
[1642077686792,6.71257429,3364.9,3364.8,0.0016]
[1642077686984,7.88196429,3364.9,3364.8,0.0016]
[1642077687189,8.25652049,3364.9,3364.8,0.0016]
[1642077687430,8.25652049,3364.9,3364.1,2.22744024]
[1642077687431,6.7,3364.6,3364.1,2.22744024]
[1642077687629,0.426,3364.5,3364.1,2.22744024]
[1642077687831,0.7434522,3364.4,3364.2,0.00341054]
[1642077688030,3.776,3364.3,3364.2,0.00341054]
[1642077688638,5.06143774,3364.3,3364.2,0.00341054]
[1642077688832,5.06143774,3364.3,3363.5,2.0]
[1642077688833,0.7434224,3364.0,3363.5,2.0073895]
[1642077689032,0.7434224,3364.0,3363.4,2.22744024]
[1642077689033,0.426,3363.9,3363.6,0.00682108]
[1642077689432,1.16943,3363.9,3363.5,0.0073895]
[1642077689833,1.12710985,3363.8,3363.5,0.0073895]
[1642077690035,1.87053895,3363.8,3363.6,2.96992032]
[1642077690434,1.87053895,3363.8,3363.7,0.00625266]
[1642077690939,1.86121395,3363.8,3363.7,0.00625266]
[1642077691383,1.86121395,3363.8,3363.6,0.00682108]
[1642077691684,0.7341041,3363.8,3363.6,2.9767414]
[1642077692083,0.7341041,3363.8,3363.7,0.00625266]
[1642077692684,4.65905825,3363.8,3363.7,0.00625266]
[1642077692884,2.10905825,3363.8,3363.7,0.00625266]
[1642077693083,4.53210743,3363.8,3363.7,0.00625266]
[1642077693283,4.53210743,3363.8,3363.5,0.0073895]
[1642077693284,3.74016623,3363.8,3363.5,0.0073895]
[1642077693483,0.74354,3363.7,3363.5,0.0073895]
[1642077693688,3.68823317,3363.6,3363.5,0.0073895]
[1642077693883,3.68823317,3363.6,3363.2,0.00909477]
[1642077694086,1.69484395,3363.6,3363.2,0.00909477]
[1642077695137,1.69484395,3363.6,3363.1,0.0096632]
[1642077695536,1.69484395,3363.6,3363.1,0.7531032]
[1642077695935,1.69484395,3363.6,3363.2,0.00909477]
[1642077696637,2.43829845,3363.6,3363.1,0.0096632]
[1642077697237,2.43829845,3363.6,3363.3,1.48667319]
[1642077697736,2.43829845,3363.6,3363.4,0.00795793]
[1642077698139,0.7435,3363.5,3363.4,0.00795793]
[1642077699406,3.3935,3363.5,3363.4,0.00795793]
[1642077699605,3.3935,3363.5,3363.0,0.01023162]
[1642077699808,0.7435407,3363.4,3363.0,0.01023162]
[1642077700209,1.4870707,3363.4,3363.0,0.01023162]
[1642077700410,1.19387001,3363.2,3363.0,0.01023162]
[1642077700609,1.19387001,3363.2,3362.9,0.01080004]
[1642077700807,0.7435245,3363.2,3362.9,0.01080004]
[1642077701210,0.74359,3363.1,3362.9,0.01080004]
[1642077701409,1.92832543,3363.0,3362.9,0.01080004]
[1642077703032,1.92832543,3363.0,3362.7,0.01193689]
[1642077703033,0.7436285,3362.9,3362.7,0.01193689]
[1642077703231,0.7436285,3362.9,3362.4,0.01364216]
[1642077703232,1.1696285,3362.9,3362.4,0.01364216]
[1642077703431,1.1696285,3362.9,3362.3,0.01421058]
[1642077703632,1.25297589,3362.4,3362.3,0.01421058]
[1642077704034,1.67897589,3362.4,3362.3,0.01421058]
[1642077704632,3.00811586,3362.4,3362.1,0.01534743]
[1642077705536,0.7437131,3362.3,3362.1,0.01534743]
[1642077705733,0.426,3362.2,3362.1,0.01534743]
[1642077705932,0.426,3362.2,3361.6,0.01818955]
[1642077706381,0.426,3362.2,3361.6,1.76194955]
[1642077706584,0.426,3362.2,3361.6,0.76194955]
[1642077706786,0.426,3362.2,3361.7,0.01762112]
[1642077707182,0.426,3362.2,3361.7,0.52913764]
[1642077707484,0.426,3362.2,3361.8,0.0170527]
[1642077708885,0.426,3362.2,3361.9,0.51151652]
[1642077709287,1.1697293,3362.2,3362.0,0.01591585]
[1642077710932,1.1697293,3362.2,3361.8,0.0170527]
[1642077711332,0.02577889,3362.1,3361.8,0.0170527]
[1642077711532,0.74379,3362.1,3361.8,0.0170527]
[1642077712037,0.7438543,3361.9,3361.6,0.01818955]
[1642077712734,0.7438543,3361.9,3361.5,0.01875797]
[1642077713576,0.7438543,3361.9,3361.5,0.76252797]
[1642077713978,0.7438543,3361.9,3361.6,0.01818955]
[1642077714784,0.426,3362.2,3361.6,0.01818955]
[1642077716286,0.426,3362.2,3361.5,1.01875797]
[1642077716486,0.74379,3362.1,3361.6,0.01818955]
[1642077716687,1.16979,3362.1,3361.6,0.01818955]
[1642077717334,0.7438141,3361.9,3361.6,0.01818955]
[1642077717532,1.9136641,3361.9,3361.6,0.01818955]
[1642077718334,1.9136641,3361.9,3361.5,0.01875797]
[1642077718534,1.32123715,3361.7,3361.5,0.01875797]
[1642077718736,2.06508215,3361.7,3361.5,0.01875797]
[1642077720035,2.06508215,3361.7,3361.6,2.55728989]
[1642077720036,0.743845,3361.7,3361.6,2.55728989]
[1642077720435,0.743845,3361.7,3361.6,2.57547944]
[1642077721079,2.26301922,3361.7,3361.6,2.57547944]
[1642077721280,2.68901922,3361.7,3361.6,2.57547944]
[1642077721481,20.21901922,3361.7,3361.6,2.57547944]
[1642077721882,20.21901922,3361.7,3361.6,0.01818955]
[1642077722283,20.21901922,3361.7,3360.8,0.02273694]
[1642077722480,1.21192803,3360.9,3360.8,0.02273694]
[1642077722681,2.58643423,3360.9,3360.8,0.02273694]
[1642077722880,0.426,3361.0,3360.8,0.02273694]
[1642077723883,2.56910067,3360.9,3360.6,0.02387378]
[1642077724083,1.36562868,3360.9,3360.6,0.02387378]
[1642077725851,2.85277815,3360.9,3360.6,0.02387378]
[1642077726454,3.59684815,3360.9,3360.6,0.02387378]
[1642077728256,0.426,3360.8,3360.6,0.02387378]
[1642077729473,0.74404,3361.1,3360.8,0.852]
[1642077729675,0.426,3361.0,3360.6,0.02387378]
[1642077729875,0.426,3361.0,3360.9,0.02216851]
[1642077730075,0.426,3361.0,3360.6,0.02387378]
[1642077730279,0.426,3361.0,3360.6,0.76792378]
[1642077730476,0.74407,3360.9,3360.6,0.76792378]
[1642077730677,0.426,3360.8,3360.7,0.02330536]
[1642077731882,0.426,3360.8,3360.6,0.02387378]
[1642077732934,1.17009,3360.8,3360.6,0.02387378]
[1642077734133,2.9357007,3360.8,3360.6,0.02387378]
[1642077734533,1.97264631,3360.7,3360.6,0.02387378]
[1642077735033,3.83284171,3360.7,3360.6,0.02387378]
[1642077735235,5.32120171,3360.7,3360.6,0.02387378]
[1642077735433,22.85120171,3360.7,3360.6,0.02387378]
[1642077736078,20.83,3360.6,3360.5,0.08087378]
[1642077736284,22.67973785,3360.6,3360.5,0.08087378]
[1642077737285,5.14973785,3360.6,3360.5,0.08087378]
[1642077737486,1.84973785,3360.6,3360.5,0.08087378]
[1642077737986,2.59390785,3360.6,3360.5,0.08087378]
[1642077739853,0.426,3360.6,3360.5,0.08087378]
[1642077740244,0.426,3360.6,3360.5,2.63914217]
[1642077742647,1.17014,3360.6,3360.5,2.63914217]
[1642077743250,3.14862101,3360.6,3360.5,2.63914217]
[1642077743452,1.17014,3360.6,3360.5,2.63914217]
[1642077747096,1.12014,3360.6,3360.5,2.63914217]
[1642077749729,0.376,3360.6,3360.5,2.63914217]
[1642077752689,0.376,3360.6,3360.5,2.93914217]
[1642077753485,0.376,3360.6,3360.5,4.80316786]
[1642077753790,0.376,3360.6,3360.5,4.789639]
[1642077753984,0.376,3360.6,3360.5,2.88914217]
[1642077754841,0.376,3360.6,3360.5,4.45025793]
[1642077757034,3.0,3360.9,3360.5,4.45025793]
[1642077757234,3.426,3360.9,3360.6,1.48804]
[1642077757434,0.00113684,3360.8,3360.6,1.48804]
[1642077758035,0.00113684,3360.8,3360.7,2.55826839]
[1642077758438,0.74517634,3360.8,3360.7,2.55826839]
[1642077758683,0.74517634,3360.8,3360.7,2.50826839]
[1642077758878,0.00113684,3360.8,3360.7,2.50826839]
[1642077760082,0.00113684,3360.8,3360.7,3.80826839]
[1642077762931,0.00113684,3360.8,3360.7,2.80826839]
[1642077763532,0.00113684,3360.8,3360.7,2.50826839]
[1642077765731,0.00113684,3360.8,3360.7,3.99494158]
[1642077766386,0.00113684,3360.8,3360.7,2.50826839]
[1642077767790,0.00113684,3360.8,3360.7,4.00197709]
[1642077768989,0.00113684,3360.8,3360.7,2.50826839]
[1642077769840,0.00113684,3360.8,3360.7,3.64191748]
[1642077770535,0.00113684,3360.8,3360.7,3.50200946]
[1642077771139,0.00113684,3360.8,3360.7,3.33531054]
[1642077772142,0.00113684,3360.8,3360.7,3.00221535]
[1642077772940,0.00113684,3360.8,3360.7,2.82152832]
[1642077773340,0.00113684,3360.8,3360.7,2.50242372]
[1642077773980,0.00113684,3360.8,3360.7,2.32173669]
[1642077774583,0.00113684,3360.8,3360.7,2.00263684]
[1642077774983,0.00113684,3360.8,3360.7,1.82194712]
[1642077775584,0.00113684,3360.8,3360.7,1.50284252]
[1642077775987,0.00113684,3360.8,3360.7,1.32215549]
[1642077776587,5.45113684,3360.8,3360.7,1.00305089]
[1642077776785,5.87713684,3360.8,3360.7,1.00305089]
[1642077777187,5.87713684,3360.8,3360.6,0.74402]
[1642077777442,0.180722,3360.7,3360.6,0.74402]
[1642077777641,0.606722,3360.7,3360.6,0.24402]
[1642077777840,1.350872,3360.7,3360.5,1.48804]
[1642077778140,1.17015,3360.7,3360.5,1.48804]
[1642077778547,4.02148779,3360.7,3360.5,1.48804]
[1642077778944,4.02148779,3360.7,3360.5,0.98815165]
[1642077779344,4.02148779,3360.7,3360.5,0.4882633]
[1642077779546,4.02148779,3360.7,3360.6,0.51176734]
[1642077779947,4.02148779,3360.7,3360.6,0.11846626]
[1642077780348,4.02148779,3360.7,3360.6,0.01188057]
[1642077780747,4.02148779,3360.7,3360.5,0.4882633]
[1642077780948,0.29769879,3360.6,3360.5,0.4882633]
[1642077781189,0.29769879,3360.6,3360.5,1.2323433]
[1642077781385,1.30285963,3360.7,3360.5,1.2323433]
[1642077781785,1.30285963,3360.7,3360.5,0.73251606]
[1642077782388,1.30285963,3360.7,3360.5,0.24431185]
[1642077783392,0.00113684,3360.8,3360.5,1.72074212]
[1642077783587,0.00113684,3360.8,3360.6,0.74403]
[1642077783788,0.00113684,3360.8,3360.6,0.70175866]
[1642077784388,1.26795531,3360.8,3360.6,0.25583242]
[1642077784850,0.00113684,3360.8,3360.6,0.25583242]
[1642077785047,0.19128454,3360.6,3360.5,1.47643027]
[1642077785446,0.74519534,3360.8,3360.5,1.47643027]
[1642077785644,0.74519534,3360.8,3360.5,2.22047027]
[1642077785844,0.74519534,3360.8,3360.6,1.50035016]
[1642077786045,0.00113684,3360.8,3360.6,1.50035016]
[1642077786445,0.74517644,3360.8,3360.6,1.50035016]
[1642077787247,0.74517644,3360.8,3360.6,2.24437016]
[1642077787446,0.7440396,3360.8,3360.6,1.74439118]
[1642077788049,0.7440396,3360.8,3360.6,1.4467234]
[1642077788682,0.7440396,3360.8,3360.6,1.24461601]
[1642077788884,0.7440396,3360.8,3360.6,1.98863601]
[1642077789286,0.7440396,3360.8,3360.6,1.69098596]
[1642077789489,3.0,3360.9,3360.7,2.0]
[1642077789688,3.0,3360.9,3360.6,2.99098596]
[1642077789888,3.0,3360.9,3360.6,1.74636995]
[1642077790091,0.20210439,3361.1,3360.7,6.14388]
[1642077790492,3.7466,3361.8,3360.8,2.48771]
[1642077790692,3.7466,3361.8,3361.2,0.74386]
[1642077790693,1.4005314,3361.6,3361.2,0.74386]
[1642077791292,2.14439,3361.6,3361.2,0.24414985]
[1642077791894,0.25582783,3361.2,3361.1,2.79705726]
[1642077792094,0.25582783,3361.2,3361.1,1.48771]
[1642077792364,0.00113685,3361.2,3361.1,1.48771]
[1642077793151,1.11792528,3361.2,3361.1,1.48771]
[1642077793555,1.11792528,3361.2,3361.1,0.98784906]
[1642077793956,0.00113685,3361.2,3361.1,0.98784906]
[1642077794159,0.7438841,3361.5,3361.1,0.98784906]
[1642077794359,0.7438841,3361.5,3361.2,0.74388]
[1642077794567,0.00113685,3361.4,3361.3,2.3]
[1642077794767,0.00113685,3361.4,3361.3,2.24553896]
[1642077794968,0.00397896,3361.9,3361.3,4.49553896]
[1642077795166,5.4737,3362.4,3361.4,1.0418908]
[1642077795365,5.4737,3362.4,3361.4,1.78842291]
[1642077795669,0.00170527,3362.2,3361.7,0.74369]
[1642077795865,0.00170527,3362.2,3361.8,2.0]
[1642077796091,0.00113685,3362.1,3361.7,0.68923544]
[1642077796294,3.8033,3362.8,3361.8,0.74359]
[1642077796295,0.44545617,3362.2,3361.8,0.74359]
[1642077796495,0.44545617,3362.2,3361.9,0.3]
[1642077796694,1.61201184,3362.2,3361.9,0.30113685]
[1642077796894,1.61201184,3362.2,3362.0,1.99573729]
[1642077797093,1.61201184,3362.2,3362.0,2.99573729]
[1642077797293,1.16655567,3362.2,3362.1,1.87410071]
[1642077797695,1.66645264,3362.2,3362.1,2.87410071]
[1642077798093,1.66645264,3362.2,3362.0,4.78847623]
[1642077798094,1.16655567,3362.2,3362.0,4.78847623]
[1642077798304,1.16655567,3362.2,3362.0,4.04485623]
[1642077798500,0.49989697,3362.1,3362.0,4.04485623]
[1642077799101,1.16655567,3362.2,3362.1,2.55758623]
[1642077799501,1.16655567,3362.2,3362.1,2.05768926]
[1642077799951,1.16655567,3362.2,3362.1,2.04995312]
[1642077800553,1.16655567,3362.2,3362.1,1.55781572]
[1642077801156,1.16655567,3362.2,3362.1,1.55008004]
[1642077801755,1.16655567,3362.2,3362.1,1.05796749]
[1642077802158,1.16655567,3362.2,3362.1,1.05023239]
[1642077802563,1.16655567,3362.2,3362.1,0.75271074]
[1642077802965,1.16655567,3362.2,3362.1,0.55039903]
[1642077803607,1.16655567,3362.2,3362.1,0.25285968]
[1642077803999,1.16655567,3362.2,3362.1,0.05054798]
[1642077804402,0.24696924,3362.1,3362.0,2.23097]
[1642077805002,1.16655567,3362.2,3362.0,2.23097]
[1642077805303,1.16655567,3362.2,3362.0,4.07710077]
[1642077805808,1.16655567,3362.2,3362.0,2.23097]
[1642077806011,1.16655567,3362.2,3362.0,4.11104943]
[1642077806210,1.16655567,3362.2,3362.0,3.59341551]
[1642077806406,1.16655567,3362.2,3362.1,1.87850746]
[1642077806808,1.16655567,3362.2,3362.1,1.37864135]
[1642077807343,1.16655567,3362.2,3362.1,2.72986257]
[1642077807843,1.36660222,3362.6,3362.3,0.35893313]
[1642077808044,1.36660222,3362.6,3362.3,1.10250313]
[1642077808244,0.00227369,3362.5,3362.3,1.10250313]
[1642077808643,0.00170527,3362.4,3362.3,0.35893313]
[1642077808847,0.00170527,3362.4,3362.2,1.48714]
[1642077809044,0.38465414,3362.3,3362.2,1.48714]
[1642077809344,0.38579099,3362.3,3362.2,1.48714]
[1642077809543,0.00113685,3362.3,3362.1,3.85917227]
[1642077810043,0.00113685,3362.3,3362.1,3.35938411]
[1642077810243,0.00113685,3362.3,3362.1,1.87225411]
[1642077810645,0.00113685,3362.3,3362.1,1.48759521]
[1642077811094,0.00113685,3362.3,3362.1,0.48759521]
[1642077811295,0.01221141,3362.1,3362.0,0.98739231]
[1642077811693,0.00113685,3362.3,3362.0,0.98739231]
[1642077811893,0.74374,3362.2,3362.0,0.98739231]
[1642077812994,0.74374,3362.2,3362.0,0.48750665]
[1642077813596,5.05525462,3362.0,3361.9,1.48858685]
[1642077813797,8.27544767,3362.0,3361.9,1.48858685]
[1642077813999,8.27544767,3362.0,3361.9,0.00113685]
[1642077814194,6.2,3361.9,3361.3,1.49141784]
[1642077814395,2.73377696,3361.8,3361.3,1.49141784]
[1642077814594,1.32717375,3361.6,3361.4,0.00284211]
[1642077814849,26.81625361,3361.5,3361.4,0.00284211]
[1642077815245,26.81625361,3361.5,3360.9,0.00568423]
[1642077815446,0.02622453,3361.4,3360.9,0.00568423]
[1642077815648,0.426,3361.3,3360.9,0.00568423]
[1642077815847,3.7680834,3361.3,3360.9,0.00568423]
[1642077816250,3.02401,3361.3,3360.9,0.74975423]
[1642077816450,3.02401,3361.3,3360.9,0.24988069]
[1642077816451,0.74406,3361.2,3360.9,0.24988069]
[1642077816654,0.426,3361.1,3361.0,0.00511581]
[1642077817051,0.49471302,3361.0,3360.9,0.24419646]
[1642077817253,0.92071302,3361.0,3360.9,0.24419646]
[1642077817752,1.22071302,3361.0,3360.9,0.24419646]
[1642077817953,1.11407709,3360.9,3360.8,1.48801]
[1642077818154,1.54007709,3360.9,3360.8,1.48801]
[1642077818452,1.54007709,3360.9,3360.8,1.48914685]
[1642077818691,0.426,3360.9,3360.8,1.48914685]
[1642077819495,0.426,3360.9,3360.8,0.98937363]
[1642077819699,1.80716388,3360.9,3360.8,0.98937363]
[1642077819897,1.80716388,3360.9,3360.8,0.48963407]
[1642077820999,0.01009806,3360.8,3360.6,1.48791]
[1642077821400,1.1698598,3361.3,3360.6,2.48791]
[1642077821604,1.1698598,3361.3,3360.8,0.74387]
[1642077821803,0.0022737,3361.2,3360.9,0.74388]
[1642077822202,0.00170527,3361.1,3360.9,0.74388]
[1642077822645,0.00170527,3361.1,3360.9,0.74387]
[1642077822646,0.00113685,3361.0,3360.9,0.74387]
[1642077822846,0.00113685,3361.0,3360.9,0.24416675]
[1642077823047,0.00113685,3361.0,3360.8,1.48776]
[1642077823445,0.49970982,3360.9,3360.8,1.48776]
[1642077824449,0.00113685,3361.0,3360.8,1.48776]
[1642077825048,0.00113685,3361.0,3360.8,4.04519287]
[1642077825246,0.00113685,3361.0,3360.8,4.28932305]
[1642077825648,0.00113685,3361.0,3360.9,5.15]
[1642077825850,0.743833,3361.5,3361.0,2.95]
[1642077826100,1.51133204,3361.7,3361.1,2.89197328]
[1642077826298,0.0022737,3361.4,3361.1,1.74379]
[1642077826498,0.00341054,3361.6,3361.2,0.08087378]
[1642077826698,0.00170527,3361.3,3361.2,0.08087378]
[1642077826898,0.00284212,3361.5,3361.2,0.08087378]
[1642077827100,0.4188286,3361.2,3361.0,1.74379]
[1642077827496,0.00341054,3361.6,3361.0,1.74379]
[1642077827697,0.00341054,3361.6,3361.2,2.55743287]
[1642077827898,0.00284212,3361.5,3361.2,2.55743287]
[1642077828198,0.00341054,3361.6,3361.2,2.55743287]
[1642077828599,1.51133204,3361.7,3361.3,0.74378]
[1642077828600,0.74662742,3361.5,3361.3,0.74378]
[1642077828799,0.74662742,3361.5,3361.2,1.48755]
[1642077828997,0.7437853,3361.5,3361.2,1.48755]
[1642077829398,0.7437853,3361.5,3361.2,0.98784762]
[1642077829602,0.7437853,3361.5,3361.3,2.55743287]
[1642077830042,0.7437853,3361.5,3361.3,2.05773049]
[1642077830442,0.7437853,3361.5,3361.2,0.98784762]
[1642077830644,0.00341054,3361.6,3361.4,1.41740991]
[1642077830843,0.00341054,3361.6,3361.5,1.86116152]
[1642077831045,0.00284212,3361.5,3361.3,3.02290575]
[1642077831248,0.49970238,3361.4,3361.2,1.73165762]
[1642077831448,0.49970238,3361.4,3361.3,1.89510703]
[1642077831647,1.14203334,3361.8,3361.3,3.63882703]
[1642077832048,1.4117955,3361.4,3361.3,3.13882707]
[1642077832252,1.4117955,3361.4,3361.3,3.88254707]
[1642077832548,1.4140692,3361.4,3361.3,3.38262146]
[1642077833148,1.4140692,3361.4,3361.3,2.88269586]
[1642077833889,1.4140692,3361.4,3361.3,1.74372]
[1642077834091,1.4140692,3361.4,3361.3,4.38806402]
[1642077834291,1.4140692,3361.4,3361.3,4.34959235]
[1642077834492,1.4140692,3361.4,3361.3,2.48744]
[1642077834691,1.4140692,3361.4,3361.3,1.0]
[1642077835191,1.4140692,3361.4,3361.2,0.98784762]
[1642077835593,0.00170527,3361.3,3361.2,0.98784762]
[1642077836999,1.4117955,3361.4,3361.2,2.84845368]
[1642077837443,1.4117955,3361.4,3361.2,0.98784762]
[1642077839044,1.4117955,3361.4,3361.3,1.89325153]
[1642077839546,1.4117955,3361.4,3361.3,2.89325153]
[1642077839745,1.4117955,3361.4,3361.3,1.89325153]
[1642077839945,1.4117955,3361.4,3361.2,0.98784762]
[1642077840249,0.7437814,3361.5,3361.2,0.98784762]
[1642077840444,0.7437814,3361.5,3361.3,1.88763523]
[1642077841101,0.7437509,3361.7,3361.3,1.88763523]
[1642077841296,1.34319204,3361.9,3361.2,3.47926546]
[1642077841495,0.0022737,3361.7,3361.3,3.35967222]
[1642077841696,0.0022737,3361.7,3361.5,0.74373]
[1642077841894,0.00170527,3361.6,3361.5,0.74373]
[1642077850211,1.86845495,3361.6,3361.5,3.30097912]
[1642077851111,0.00170527,3361.6,3361.5,3.30097912]
[1642077853545,3.00170527,3361.6,3361.5,3.30097912]
[1642077855756,4.8531697,3361.6,3361.5,3.30097912]
[1642077855952,6.2969697,3361.6,3361.5,2.55724912]
[1642077856202,4.44550527,3361.6,3361.5,2.55724912]
[1642077856404,0.0233064,3361.4,3360.9,1.49141784]
[1642077856600,0.7441494,3361.1,3360.9,1.49141784]
[1642077856801,5.976,3361.0,3360.9,1.49141784]
[1642077856997,6.276,3361.0,3360.9,1.49141784]
[1642077857199,6.6096,3361.0,3360.9,1.49369153]
[1642077857704,6.6096,3361.0,3360.9,0.00227369]
[1642077858099,0.74413,3360.9,3360.7,0.00341054]
[1642077858303,3.476,3360.8,3360.7,0.00341054]
[1642077858602,6.09969259,3360.8,3360.7,0.00341054]
[1642077859201,7.63302036,3360.8,3360.7,0.00341054]
[1642077860851,7.93302036,3360.8,3360.7,0.00341054]
[1642077861044,6.05346287,3360.8,3360.7,0.00341054]
[1642077861255,2.70346287,3360.8,3360.7,0.00341054]
[1642077861451,4.61162613,3360.8,3360.7,0.00341054]
[1642077861850,4.91162613,3360.8,3360.7,0.00341054]